bitfinex/quotes_BTCUSD_20250607
["timestamp","ask_amount","ask_price","bid_price","bid_amount"]
[1749326792165,0.01625,105910.0,105900.0,2.07035792]
[1749326792812,0.01625,105910.0,105900.0,1.99660092]
[1749326793012,0.03205,105910.0,105900.0,2.36932092]
[1749326793217,0.03209782,105910.0,105900.0,2.37032092]
[1749326795738,0.03209782,105910.0,105900.0,1.16465942]
[1749326795894,0.03209782,105910.0,105900.0,2.37032092]
[1749326796105,0.03209782,105910.0,105900.0,2.66822092]
[1749326797659,0.03209782,105910.0,105900.0,2.91310092]
[1749326799096,0.01629782,105910.0,105900.0,2.92910092]
[1749326802502,0.01629782,105910.0,105900.0,3.20118092]
[1749326806149,0.01394173,105910.0,105900.0,3.18518092]
[1749326806562,0.01394173,105910.0,105900.0,3.20058092]
[1749326808270,0.02904173,105910.0,105900.0,3.18518092]
[1749326808689,0.01394173,105910.0,105900.0,3.18518092]
[1749326813234,0.01394173,105910.0,105900.0,3.18400664]
[1749326815246,0.01244173,105910.0,105900.0,3.18400664]
[1749326817749,0.02854173,105910.0,105900.0,3.18400664]
[1749326822638,0.01244173,105910.0,105900.0,3.18400664]
[1749326826251,0.01244173,105910.0,105900.0,3.19990664]
[1749326831086,0.01244173,105910.0,105900.0,1.99424514]
[1749326831303,0.01244173,105910.0,105900.0,3.19990664]
[1749326832229,0.01244173,105910.0,105900.0,1.99424514]
[1749326832454,0.01244173,105910.0,105900.0,3.19990664]
[1749326832880,0.01244173,105910.0,105900.0,3.20190664]
[1749326833986,0.01244173,105910.0,105900.0,3.44791739]
[1749326834217,0.01244173,105910.0,105900.0,3.82115739]
[1749326834673,0.01244173,105910.0,105900.0,3.87115739]
[1749326835368,0.00676962,105920.0,105910.0,0.65350528]
[1749326835579,0.00676962,105920.0,105910.0,2.04996363]
[1749326836050,0.00676962,105920.0,105910.0,1.95556626]
[1749326836258,0.00676962,105920.0,105910.0,1.96481148]
[1749326836676,0.00676962,105920.0,105910.0,1.96981148]
[1749326837307,0.00676962,105920.0,105910.0,2.06410618]
[1749326840494,0.00676962,105920.0,105910.0,2.36200618]
[1749326841994,0.00676962,105920.0,105910.0,2.39036418]
[1749326853454,0.00676962,105920.0,105910.0,2.74830418]
[1749326863531,0.00658079,105920.0,105910.0,2.74830418]
[1749326864402,0.00066454,105920.0,105910.0,2.65400948]
[1749326865559,0.00066454,105920.0,105910.0,2.78565026]
[1749326867515,0.00066454,105920.0,105910.0,3.03049026]
[1749326868075,0.00066454,105920.0,105910.0,2.65665026]
[1749326868293,0.00066454,105920.0,105910.0,3.03121026]
[1749326868958,0.00066454,105920.0,105910.0,3.03117026]
[1749326873139,0.00066454,105920.0,105910.0,2.65665026]
[1749326873356,0.00066454,105920.0,105910.0,3.03129026]
[1749326874437,6.949e-05,105920.0,105910.0,3.03129026]
[1749326875670,6.949e-05,105920.0,105910.0,3.30333026]
[1749326884450,7.45e-06,105920.0,105910.0,3.30333026]
[1749326894365,0.04700926,105930.0,105920.0,0.57168478]
[1749326894573,0.06285704,105930.0,105920.0,2.35357296]
[1749326895199,0.06285704,105930.0,105920.0,2.38193196]
[1749326895634,0.06285704,105930.0,105920.0,2.38293196]
[1749326896528,0.06285704,105930.0,105920.0,2.38393196]
[1749326898164,0.06285704,105930.0,105920.0,2.62877196]
[1749326900781,0.04705704,105930.0,105920.0,2.62877196]
[1749326903015,0.04705704,105930.0,105920.0,2.90081196]
[1749326922173,0.04705704,105930.0,105920.0,1.69515046]
[1749326922378,0.04705704,105930.0,105920.0,2.90081196]
[1749326932317,0.03135704,105930.0,105920.0,2.90081196]
[1749326935181,0.03135704,105930.0,105920.0,2.91651196]
[1749326938564,0.03135704,105930.0,105920.0,2.91689009]
[1749326953586,0.03135704,105930.0,105920.0,2.91689008]
[1749326956368,0.03135704,105930.0,105920.0,1.71122858]
[1749326956576,0.03135704,105930.0,105920.0,2.91689008]
[1749326962643,0.03135704,105930.0,105920.0,1.71122858]
[1749326962853,0.03135704,105930.0,105920.0,2.91689008]
[1749326965148,0.03135704,105930.0,105920.0,2.82933008]
[1749326965353,0.03135704,105930.0,105920.0,3.18699008]
[1749326974639,0.03135704,105930.0,105920.0,2.90075008]
[1749326974864,0.06315704,105930.0,105920.0,2.29342565]
[1749326975077,0.06315704,105930.0,105920.0,2.26506664]
[1749326976417,0.06315704,105930.0,105920.0,2.26514664]
[1749326976888,0.06315704,105930.0,105920.0,2.18959312]
[1749326978822,0.06315704,105930.0,105920.0,2.24619885]
[1749326981471,0.06315704,105930.0,105920.0,1.87263885]
[1749326981690,0.06315704,105930.0,105920.0,2.24611885]
[1749326984655,0.06319704,105930.0,105920.0,2.24611885]
[1749326985509,0.06319704,105930.0,105920.0,1.87263885]
[1749326985728,0.07263652,105930.0,105920.0,1.66638723]
[1749326985938,0.07263652,105930.0,105920.0,1.6097815]
[1749326985939,0.07263643,105930.0,105920.0,1.6097815]
[1749326986151,0.07263643,105930.0,105920.0,1.62432235]
[1749326986364,0.07263643,105930.0,105920.0,1.27416152]
[1749326986833,0.07263643,105930.0,105920.0,1.28770237]
[1749326987041,0.07263643,105930.0,105920.0,1.28670237]
[1749326987488,0.07363643,105930.0,105920.0,1.28670237]
[1749326987697,0.07263643,105930.0,105920.0,1.32440623]
[1749326987955,0.06419704,105930.0,105920.0,1.32440623]
[1749326988152,0.06619704,105930.0,105920.0,1.32440623]
[1749326990417,0.06619704,105930.0,105920.0,0.95100623]
[1749326990620,0.06619704,105930.0,105920.0,1.32444623]
[1749326995726,0.07563652,105930.0,105920.0,0.95100623]
[1749326995931,0.06619704,105930.0,105920.0,1.32456623]
[1749326996134,0.07563643,105930.0,105920.0,1.32456623]
[1749326996335,0.07563643,105930.0,105920.0,0.95100623]
[1749326996575,0.06619704,105930.0,105920.0,1.32464623]
[1749326996993,0.08507644,105930.0,105920.0,1.32464623]
[1749326997426,0.09451645,105930.0,105920.0,1.03820623]
[1749326997642,0.08507644,105930.0,105920.0,1.32460623]
[1749326997852,0.09451636,105930.0,105920.0,1.32460623]
[1749326999406,0.07563661,105930.0,105920.0,1.32460623]
[1749326999612,0.08507627,105930.0,105920.0,1.32460623]
[1749327003261,0.08507627,105930.0,105920.0,1.32480576]
[1749327003482,0.06619704,105930.0,105920.0,1.32480576]
[1749327003699,0.04959704,105930.0,105920.0,2.05987805]
[1749327003909,0.03439704,105930.0,105920.0,2.05987805]
[1749327007732,0.05009704,105930.0,105920.0,2.05987805]
[1749327008783,0.05009704,105930.0,105920.0,2.02217419]
[1749327009488,0.05009704,105930.0,105920.0,1.94653838]
[1749327009687,0.05009704,105930.0,105920.0,1.98428419]
[1749327010592,0.05009704,105930.0,105920.0,1.88993265]
[1749327010800,0.05009704,105930.0,105920.0,1.9843032]
[1749327011880,0.05009704,105930.0,105920.0,1.94655498]
[1749327014260,0.05009704,105930.0,105920.0,1.94667498]
[1749327015736,0.05009704,105930.0,105920.0,1.34384423]
[1749327015944,0.05009704,105930.0,105920.0,1.94667498]
[1749327022756,0.05009704,105930.0,105920.0,1.94667498]
[1749327026986,0.03439704,105930.0,105920.0,1.94667498]
[1749327027660,0.38561784,105930.0,105920.0,0.71732423]
[1749327027880,0.38969704,105930.0,105920.0,1.00760423]
[1749327028113,0.38969704,105930.0,105920.0,1.61043498]
[1749327028847,0.04969704,105930.0,105920.0,1.61043498]
[1749327041720,0.03439704,105930.0,105920.0,1.61043498]
[1749327047090,0.03439704,105930.0,105920.0,1.62633498]
[1749327050595,0.03439704,105930.0,105920.0,1.61043498]
[1749327050796,0.04949704,105930.0,105920.0,1.61043498]
[1749327051819,0.04949704,105930.0,105920.0,1.61043497]
[1749327056379,0.05893643,105930.0,105920.0,0.71732422]
[1749327056602,0.04949704,105930.0,105920.0,1.00656422]
[1749327056831,0.04949704,105930.0,105920.0,1.00964422]
[1749327056832,0.06589704,105930.0,105920.0,1.00964422]
[1749327057262,0.07533652,105930.0,105920.0,1.61247497]
[1749327058107,0.06589704,105930.0,105920.0,1.61247497]
[1749327058324,0.07533652,105930.0,105920.0,1.00964422]
[1749327058536,0.07533652,105930.0,105920.0,1.04742519]
[1749327058974,0.06589704,105930.0,105920.0,1.04742519]
[1749327059185,0.04949704,105930.0,105920.0,1.65025594]
[1749327063215,0.05893652,105930.0,105920.0,1.65025594]
[1749327063417,0.04949704,105930.0,105920.0,1.65025594]
[1749327063864,0.05893643,105930.0,105920.0,1.65025594]
[1749327065108,0.04949704,105930.0,105920.0,1.65025594]
[1749327065991,0.05893652,105930.0,105920.0,1.65025594]
[1749327066202,0.05893652,105930.0,105920.0,1.64977594]
[1749327066651,0.04949704,105930.0,105920.0,1.64977594]
[1749327066866,0.05893652,105930.0,105920.0,1.64977594]
[1749327067083,0.04949704,105930.0,105920.0,1.64977594]
[1749327067294,0.05893652,105930.0,105920.0,1.64977594]
[1749327067512,0.05893643,105930.0,105920.0,1.64977594]
[1749327067976,0.05893643,105930.0,105920.0,1.04694519]
[1749327068188,0.05893652,105930.0,105920.0,1.64977594]
[1749327068825,0.28162055,105930.0,105920.0,0.54940234]
[1749327069038,0.09281663,105930.0,105920.0,0.90320446]
[1749327069302,0.09281663,105930.0,105920.0,0.88866361]
[1749327069517,0.10225682,105930.0,105920.0,0.90320446]
[1749327069729,0.10225682,105930.0,105920.0,0.86542349]
[1749327069941,0.11994516,105930.0,105920.0,0.85598303]
[1749327070183,0.30874908,105930.0,105920.0,0.85598303]
[1749327070398,0.29106074,105930.0,105920.0,0.85598303]
[1749327070647,0.29106074,105930.0,105920.0,0.86542367]
[1749327073042,0.09281663,105930.0,105920.0,0.87486422]
[1749327073261,0.10225602,105930.0,105920.0,1.47769435]
[1749327074123,0.08725602,105930.0,105920.0,1.47769435]
[1749327074794,0.08725602,105930.0,105920.0,0.8748636]
[1749327076865,0.29126083,105930.0,105920.0,0.83674113]
[1749327077346,0.29126083,105930.0,105920.0,0.84618168]
[1749327078033,0.10245691,105930.0,105920.0,0.85562214]
[1749327078248,0.29126083,105930.0,105920.0,0.84618177]
[1749327078468,0.29126083,105930.0,105920.0,0.85562232]
[1749327078684,0.09301672,105930.0,105920.0,0.86506278]
[1749327079539,0.09301663,105930.0,105920.0,0.86506278]
[1749327081989,0.08357662,105930.0,105920.0,0.86506278]
[1749327082225,0.09301663,105930.0,105920.0,0.86506278]
[1749327084297,0.08357662,105930.0,105920.0,0.86506278]
[1749327084774,0.09301663,105930.0,105920.0,0.86506278]
[1749327087385,0.08357662,105930.0,105920.0,0.86506278]
[1749327087600,0.09301663,105930.0,105920.0,0.86506278]
[1749327091667,0.27238089,105930.0,105920.0,0.01511848]
[1749327091864,0.27238089,105930.0,105920.0,0.58202023]
[1749327092193,0.27238089,105930.0,105920.0,0.59146113]
[1749327092399,0.27238089,105930.0,105920.0,0.61034285]
[1749327092608,0.26294097,105930.0,105920.0,0.60090212]
[1749327092816,0.25350096,105930.0,105920.0,0.60090212]
[1749327093301,0.25350096,105930.0,105920.0,0.58202023]
[1749327093504,0.25250096,105930.0,105920.0,0.59146131]
[1749327093709,0.25250096,105930.0,105920.0,0.40263956]
[1749327093870,0.25250096,105930.0,105920.0,0.59146131]
[1749327094308,0.25550096,105930.0,105920.0,0.59146131]
[1749327094517,0.25350096,105930.0,105920.0,0.59146131]
[1749327094748,0.25650096,105930.0,105920.0,0.59146131]
[1749327096131,0.25650096,105930.0,105920.0,0.60090221]
[1749327096613,0.27417676,105930.0,105920.0,0.6009023]
[1749327097537,0.27417659,105930.0,105920.0,0.6009023]
[1749327097960,0.25650096,105930.0,105920.0,0.6009023]
[1749327098372,0.27417659,105930.0,105920.0,0.6009023]
[1749327098800,0.25650096,105930.0,105920.0,0.6009023]
[1749327099037,0.27418295,105930.0,105920.0,0.6009023]
[1749327099250,0.27418295,105930.0,105920.0,0.6103432]
[1749327099475,0.29306306,105930.0,105920.0,0.61978384]
[1749327099704,0.29306308,105930.0,105920.0,0.61978393]
[1749327099962,0.27538107,105930.0,105920.0,0.61978393]
[1749327100175,0.29306308,105930.0,105920.0,0.61978393]
[1749327100384,0.29306269,105930.0,105920.0,0.61978393]
[1749327100822,0.27786269,105930.0,105920.0,0.61978393]
[1749327101267,0.27786271,105930.0,105920.0,0.62922457]
[1749327102597,0.09849836,105930.0,105920.0,0.62922395]
[1749327103137,0.08081672,105930.0,105920.0,0.62922395]
[1749327103344,0.07395815,105930.0,105920.0,0.62922395]
[1749327103546,0.08339816,105930.0,105920.0,0.64472395]
[1749327103795,0.03739704,105930.0,105920.0,1.36005418]
[1749327103949,0.03739704,105930.0,105920.0,2.0006659]
[1749327104347,0.03739704,105930.0,105920.0,1.45445748]
[1749327105009,0.03739704,105930.0,105920.0,2.01950726]
[1749327106062,0.03439704,105930.0,105920.0,2.01950726]
[1749327106279,0.03139704,105930.0,105920.0,1.41667651]
[1749327106487,0.03339704,105930.0,105920.0,1.41667651]
[1749327107328,0.03339704,105930.0,105920.0,0.81384576]
[1749327107559,0.03339704,105930.0,105920.0,1.4544111]
[1749327108456,0.03339704,105930.0,105920.0,1.41667651]
[1749327114158,0.03339704,105930.0,105920.0,2.01950726]
[1749327116645,0.03339704,105930.0,105920.0,1.41667651]
[1749327119170,0.03339704,105930.0,105920.0,2.01950726]
[1749327124052,0.03339704,105930.0,105920.0,2.03838138]
[1749327124481,0.03339704,105930.0,105920.0,1.96288493]
[1749327124910,0.03339704,105930.0,105920.0,2.03838138]
[1749327125124,0.03339704,105930.0,105920.0,1.96288493]
[1749327126958,0.03339704,105930.0,105920.0,2.60078493]
[1749327127172,0.03339704,105930.0,105920.0,2.98121213]
[1749327127832,0.03339704,105930.0,105920.0,3.00957113]
[1749327128245,0.03139704,105930.0,105920.0,3.00957113]
[1749327134237,0.03139704,105930.0,105920.0,2.40674038]
[1749327134682,0.03139704,105930.0,105920.0,3.00957113]
[1749327135038,0.03139704,105930.0,105920.0,3.28161113]
[1749327136482,0.03139704,105930.0,105920.0,3.57951113]
[1749327144808,0.03139704,105930.0,105920.0,2.97668038]
[1749327145031,0.03139704,105930.0,105920.0,3.57951113]
[1749327145737,0.03139704,105930.0,105920.0,3.50401468]
[1749327148959,0.03139704,105930.0,105920.0,3.59838188]
[1749327149394,0.03139704,105930.0,105920.0,3.50401468]
[1749327149835,0.03139704,105930.0,105920.0,3.59838188]
[1749327153986,0.03139704,105930.0,105920.0,3.84318188]
[1749327159603,0.03139704,105930.0,105920.0,3.89318188]
[1749327160428,0.0034611,105930.0,105920.0,3.93045546]
[1749327161731,0.0034611,105930.0,105920.0,3.79881468]
[1749327162364,0.0034611,105930.0,105920.0,3.79709468]
[1749327166251,0.0034611,105930.0,105920.0,4.49709468]
[1749327170276,0.00039947,105930.0,105920.0,4.49709468]
[1749327170674,0.00039947,105930.0,105920.0,4.50009468]
[1749327170899,0.00039947,105930.0,105920.0,2.69160243]
[1749327171098,0.00039947,105930.0,105920.0,4.50309468]
[1749327171298,0.00039947,105930.0,105920.0,4.63473546]
[1749327172498,0.00039947,105930.0,105920.0,4.50309468]
[1749327177988,0.00039947,105930.0,105920.0,3.93473546]
[1749327180346,4.653e-05,105930.0,105920.0,3.93473546]
[1749327181069,4.653e-05,105930.0,105920.0,4.63473546]
[1749327183365,4.653e-05,105930.0,105920.0,4.57795382]
[1749327184010,4.653e-05,105930.0,105920.0,4.57853145]
[1749327185122,4.653e-05,105930.0,105920.0,6.3870237]
[1749327185328,4.653e-05,105930.0,105920.0,5.27853145]
[1749327185537,4.653e-05,105930.0,105920.0,4.5930723]
[1749327189207,0.03929104,105950.0,105920.0,4.54586858]
[1749327189429,0.03933882,105950.0,105940.0,2.21204977]
[1749327189647,0.03933882,105950.0,105940.0,2.86259551]
[1749327189859,0.03933882,105950.0,105940.0,2.98534134]
[1749327190494,0.03933882,105950.0,105940.0,2.89094851]
[1749327190709,0.02293882,105950.0,105940.0,2.90604851]
[1749327191571,0.02293882,105950.0,105940.0,2.89094851]
[1749327192814,0.02293882,105950.0,105940.0,2.90604851]
[1749327194024,0.02293882,105950.0,105940.0,3.15084851]
[1749327195193,0.02293882,105950.0,105940.0,3.54954134]
[1749327197127,0.02293882,105950.0,105940.0,3.53304134]
[1749327198883,0.02293882,105950.0,105940.0,3.80500134]
[1749327199276,0.02293882,105950.0,105940.0,3.80538713]
[1749327208716,0.02293882,105950.0,105940.0,3.80538712]
[1749327215098,0.02293882,105950.0,105940.0,3.85538712]
[1749327219233,0.02293882,105950.0,105940.0,3.87088712]
[1749327219658,0.02293882,105950.0,105940.0,3.85538712]
[1749327220520,0.02293882,105950.0,105940.0,3.85638712]
[1749327220941,0.02293882,105950.0,105940.0,3.85638711]
[1749327221467,0.02293882,105950.0,105940.0,3.85838711]
[1749327224524,0.02293882,105950.0,105940.0,3.76399428]
[1749327226629,0.02293882,105950.0,105940.0,3.47619428]
[1749327226872,0.00268886,105950.0,105940.0,3.77961428]
[1749327227298,0.00268886,105950.0,105940.0,3.76331428]
[1749327241152,0.01625,105960.0,105950.0,0.58672329]
[1749327241375,0.01625,105960.0,105950.0,2.28145913]
[1749327241598,0.03555229,105970.0,105960.0,0.57160281]
[1749327241870,0.01995229,105970.0,105960.0,2.67398817]
[1749327242934,0.01995229,105970.0,105960.0,2.70233417]
[1749327243161,0.01995229,105970.0,105960.0,2.70433416]
[1749327243369,0.01995229,105970.0,105960.0,2.75433416]
[1749327243797,0.01995229,105970.0,105960.0,2.75533416]
[1749327244205,0.01995229,105970.0,105960.0,2.78371406]
[1749327244647,0.03565229,105970.0,105960.0,2.45298331]
[1749327245097,0.05175229,105970.0,105960.0,2.10124246]
[1749327245315,0.05175229,105970.0,105960.0,2.36963234]
[1749327245533,0.05175229,105970.0,105960.0,2.36963233]
[1749327245770,0.05175229,105970.0,105960.0,2.38417318]
[1749327245982,0.05175229,105970.0,105960.0,2.68207318]
[1749327246408,0.05175229,105970.0,105960.0,2.68203318]
[1749327246630,0.05175229,105970.0,105960.0,2.30707318]
[1749327246843,0.05175229,105970.0,105960.0,2.68203318]
[1749327251704,0.05175229,105970.0,105960.0,2.92675318]
[1749327254203,0.05175229,105970.0,105960.0,2.92675317]
[1749327256420,0.05175229,105970.0,105960.0,3.19867317]
[1749327259022,0.03565229,105970.0,105960.0,3.19867317]
[1749327259461,0.01995229,105970.0,105960.0,3.19867317]
[1749327261367,0.03625229,105970.0,105960.0,3.19867317]
[1749327262535,0.05245229,105970.0,105960.0,2.82371317]
[1749327262949,0.05245229,105970.0,105960.0,3.19859317]
[1749327263159,0.05245229,105970.0,105960.0,3.19859316]
[1749327271586,0.05245229,105970.0,105960.0,1.61805166]
[1749327271804,0.05245229,105970.0,105960.0,2.88304716]
[1749327272020,0.05245229,105970.0,105960.0,3.17004716]
[1749327272258,0.05245229,105970.0,105960.0,3.17004715]
[1749327272465,0.05245229,105970.0,105960.0,3.16804715]
[1749327273576,0.05245229,105970.0,105960.0,3.16704715]
[1749327273794,0.05345229,105970.0,105960.0,3.16704715]
[1749327277237,0.05345229,105970.0,105960.0,2.89512715]
[1749327277870,0.03725229,105970.0,105960.0,2.89512715]
[1749327278069,0.03725229,105970.0,105960.0,2.52044715]
[1749327278271,0.03725229,105970.0,105960.0,2.89496715]
[1749327278974,0.02095229,105970.0,105960.0,2.89496715]
[1749327279177,0.02095229,105970.0,105960.0,2.91136715]
[1749327280256,0.02095229,105970.0,105960.0,2.91136714]
[1749327282720,0.02095229,105970.0,105960.0,2.92736714]
[1749327285252,0.02095229,105970.0,105960.0,2.85196939]
[1749327288372,0.02095229,105970.0,105960.0,3.12388939]
[1749327288990,0.02095229,105970.0,105960.0,3.10788939]
[1749327291662,0.02095229,105970.0,105960.0,2.73336939]
[1749327291863,0.02095229,105970.0,105960.0,3.18264314]
[1749327296071,0.02095229,105970.0,105960.0,3.10716939]
[1749327297057,0.02095229,105970.0,105960.0,3.10720939]
[1749327297264,0.02095229,105970.0,105960.0,3.13555739]
[1749327298271,0.02095229,105970.0,105960.0,3.13550647]
[1749327302235,0.02095229,105970.0,105960.0,3.24824508]
[1749327302444,0.02095229,105970.0,105960.0,3.55076508]
[1749327302652,0.00201937,105970.0,105960.0,3.55076508]
[1749327303267,0.00201937,105970.0,105960.0,3.60076508]
[1749327303675,0.00101937,105970.0,105960.0,3.60376508]
[1749327303889,0.00101937,105970.0,105960.0,3.60576508]
[1749327305570,0.00101937,105970.0,105960.0,1.79727283]
[1749327305792,0.00101937,105970.0,105960.0,3.60576508]
[1749327308127,0.00101937,105970.0,105960.0,3.90366508]
[1749327308339,0.00101937,105970.0,105960.0,3.90366507]
[1749327316467,0.00101937,105970.0,105960.0,3.90514507]
[1749327316682,0.00101937,105970.0,105960.0,4.60514507]
[1749327318165,0.00101937,105970.0,105960.0,3.90514507]
[1749327321361,0.00101937,105970.0,105960.0,4.60514507]
[1749327328576,0.00101937,105970.0,105960.0,4.58914507]
[1749327329939,0.00101937,105970.0,105960.0,4.60534507]
[1749327331961,0.00101937,105970.0,105960.0,4.5109772]
[1749327332752,0.00101937,105970.0,105960.0,4.60531912]
[1749327333286,0.00101937,105970.0,105960.0,4.58887912]
[1749327334345,0.00010656,105970.0,105960.0,4.4945372]
[1749327335363,0.03180656,105970.0,105960.0,2.73758488]
[1749327335567,0.03180656,105970.0,105960.0,3.20595002]
[1749327335773,0.03180656,105970.0,105960.0,3.22049087]
[1749327336182,0.03180656,105970.0,105960.0,3.22069087]
[1749327336588,0.03180656,105970.0,105960.0,2.93273087]
[1749327336833,0.03180656,105970.0,105960.0,2.93073087]
[1749327337047,0.03180656,105970.0,105960.0,3.21669087]
[1749327338759,0.03180656,105970.0,105960.0,2.92873087]
[1749327338970,0.03180656,105970.0,105960.0,3.09407844]
[1749327339834,0.03180656,105970.0,105960.0,3.16957507]
[1749327340253,0.03180656,105970.0,105960.0,2.52695422]
[1749327340488,0.03180656,105970.0,105960.0,2.81519422]
[1749327340690,0.03180656,105970.0,105960.0,2.45637844]
[1749327340894,0.03180656,105970.0,105960.0,2.16813844]
[1749327341102,0.03180656,105970.0,105960.0,2.45649844]
[1749327341514,0.03280656,105970.0,105960.0,1.91023021]
[1749327341908,0.03280656,105970.0,105960.0,1.90923021]
[1749327342110,0.03280656,105970.0,105960.0,2.51206096]
[1749327342312,0.03380656,105970.0,105960.0,2.51206096]
[1749327343344,0.03380656,105970.0,105960.0,2.54975642]
[1749327343563,0.03380656,105970.0,105960.0,2.52137652]
[1749327344004,0.03380656,105970.0,105960.0,0.95625165]
[1749327344243,0.03380656,105970.0,105960.0,1.86222325]
[1749327344455,0.04324239,105970.0,105960.0,1.86222325]
[1749327345101,0.03380656,105970.0,105960.0,1.86222325]
[1749327345315,0.03380656,105970.0,105960.0,1.2593925]
[1749327345549,0.05267848,105970.0,105960.0,0.84497704]
[1749327345772,0.04324239,105970.0,105960.0,1.22181704]
[1749327346198,0.03380656,105970.0,105960.0,1.22181704]
[1749327346413,0.04324239,105970.0,105960.0,1.22181704]
[1749327346828,0.04324239,105970.0,105960.0,0.84497704]
[1749327347042,0.04324239,105970.0,105960.0,1.22189704]
[1749327348307,0.03380656,105970.0,105960.0,1.22189704]
[1749327349257,0.03380656,105970.0,105960.0,1.53460776]
[1749327349497,0.03380656,105970.0,105960.0,1.86118322]
[1749327352550,0.03380656,105970.0,105960.0,1.57230322]
[1749327352768,0.03380656,105970.0,105960.0,1.86130322]
[1749327353610,0.01860656,105970.0,105960.0,1.86130322]
[1749327353824,0.03380656,105970.0,105960.0,1.86130322]
[1749327355084,0.01860656,105970.0,105960.0,1.91786574]
[1749327355291,0.01860656,105970.0,105960.0,2.15920322]
[1749327360908,0.00210656,105970.0,105960.0,2.15920322]
[1749327361114,0.00210656,105970.0,105960.0,2.21576574]
[1749327361711,0.00210656,105970.0,105960.0,2.17807028]
[1749327362150,0.00210656,105970.0,105960.0,2.21570912]
[1749327363461,0.00210656,105970.0,105960.0,2.23140912]
[1749327364728,0.00210656,105970.0,105960.0,2.19377028]
[1749327365150,0.00210656,105970.0,105960.0,2.80571848]
[1749327365351,0.00210656,105970.0,105960.0,3.77050181]
[1749327365562,0.00210656,105970.0,105960.0,2.88041243]
[1749327365695,0.00210656,105970.0,105960.0,3.16937243]
[1749327366412,0.00210656,105970.0,105960.0,3.77050181]
[1749327367160,0.00210656,105970.0,105960.0,3.16947755]
[1749327368719,0.00210656,105970.0,105960.0,2.88051755]
[1749327369137,0.00210656,105970.0,105960.0,3.16931755]
[1749327370329,0.00210656,105970.0,105960.0,2.88051755]
[1749327370528,0.00210656,105970.0,105960.0,3.16927755]
[1749327370703,0.00210656,105970.0,105960.0,2.88051755]
[1749327371124,0.00210656,105970.0,105960.0,3.16927755]
[1749327371324,0.00210656,105970.0,105960.0,3.19762255]
[1749327371525,0.00210656,105970.0,105960.0,3.12216592]
[1749327371836,0.00210656,105970.0,105960.0,3.21651035]
[1749327372279,0.00210656,105970.0,105960.0,3.12216592]
[1749327373862,0.00210656,105970.0,105960.0,2.9086802]
[1749327374074,0.00210656,105970.0,105960.0,3.1980002]
[1749327378495,0.00210656,105970.0,105960.0,2.9001002]
[1749327383479,0.00210656,105970.0,105960.0,2.82482592]
[1749327385289,0.00210656,105970.0,105960.0,2.91917035]
[1749327387591,0.00210656,105970.0,105960.0,2.90357035]
[1749327389295,0.00210656,105970.0,105960.0,2.90360503]
[1749327392128,0.00210656,105970.0,105960.0,3.50480431]
[1749327392338,0.00210656,105970.0,105960.0,3.51980431]
[1749327394156,0.00210656,105970.0,105960.0,3.51988431]
[1749327397542,0.00210656,105970.0,105960.0,3.14196431]
[1749327397710,0.01710656,105970.0,105960.0,2.88790503]
[1749327397908,0.03360656,105970.0,105960.0,2.88814503]
[1749327399151,0.00210656,105970.0,105960.0,3.48946431]
[1749327399357,0.00210656,105970.0,105960.0,3.50476431]
[1749327399988,0.00210656,105970.0,105960.0,3.48946431]
[1749327400941,0.00210656,105970.0,105960.0,3.19990431]
[1749327401370,0.00210656,105970.0,105960.0,3.48938431]
[1749327402647,0.00210656,105970.0,105960.0,3.19990431]
[1749327403100,0.00210656,105970.0,105960.0,3.48930431]
[1749327403595,0.00210656,105970.0,105960.0,3.19990431]
[1749327403802,0.00210656,105970.0,105960.0,3.48926431]
[1749327404253,0.00210656,105970.0,105960.0,3.19990431]
[1749327404454,0.00210656,105970.0,105960.0,3.48922431]
[1749327406035,0.00210656,105970.0,105960.0,3.19990431]
[1749327406426,0.00210656,105970.0,105960.0,3.48918431]
[1749327407175,0.00210656,105970.0,105960.0,1.68558647]
[1749327407456,0.00210656,105970.0,105960.0,2.59870503]
[1749327407660,0.00210656,105970.0,105960.0,3.48918431]
[1749327408206,0.00210656,105970.0,105960.0,2.88798503]
[1749327408652,0.00210656,105970.0,105960.0,2.88798502]
[1749327409227,0.00210656,105970.0,105960.0,3.4891843]
[1749327409426,0.00210656,105970.0,105960.0,3.5047843]
[1749327414242,0.00210656,105970.0,105960.0,3.2155043]
[1749327414447,0.00210656,105970.0,105960.0,3.5047043]
[1749327415276,0.00210656,105970.0,105960.0,3.5209043]
[1749327429172,0.00210656,105970.0,105960.0,3.5709043]
[1749327429827,0.01770656,105970.0,105960.0,3.5395443]
[1749327431913,0.01770656,105970.0,105960.0,3.1112643]
[1749327432162,0.01770656,105970.0,105960.0,3.4895443]
[1749327433722,0.01770656,105970.0,105960.0,3.4895043]
[1749327434396,0.01770656,105970.0,105960.0,3.1112643]
[1749327434638,0.01770656,105970.0,105960.0,3.4894643]
[1749327434852,0.00210656,105970.0,105960.0,3.4894643]
[1749327435318,0.01820656,105970.0,105960.0,3.4894643]
[1749327435797,0.01820656,105970.0,105960.0,3.4894243]
[1749327439365,0.00210656,105970.0,105960.0,3.4894243]
[1749327449189,0.00210656,105970.0,105960.0,3.5048243]
[1749327455196,0.00210656,105970.0,105960.0,3.5209243]
[1749327457063,0.00210656,105970.0,105960.0,3.5048243]
[1749327464402,0.00017834,105970.0,105960.0,3.5048243]
[1749327469150,0.00017834,105970.0,105960.0,3.5214243]
[1749327472341,0.0162,105980.0,105970.0,1.77398088]
[1749327472526,0.0162,105980.0,105970.0,1.96499001]
[1749327472758,0.04805,105990.0,105980.0,0.23156184]
[1749327472966,0.04852788,105990.0,105980.0,1.69487548]
[1749327473605,0.04852788,105990.0,105980.0,1.72322048]
[1749327474436,0.05152788,105990.0,105980.0,1.72322048]
[1749327475878,0.05144071,105990.0,105980.0,1.72322048]
[1749327477511,0.05144071,105990.0,105980.0,1.96794048]
[1749327477745,0.05144071,105990.0,105980.0,1.97749625]
[1749327479873,0.05144071,105990.0,105980.0,2.26565625]
[1749327482462,0.05144071,105990.0,105980.0,2.56355625]
[1749327482684,0.05144071,105990.0,105980.0,2.56355624]
[1749327483964,0.05144071,105990.0,105980.0,2.56279624]
[1749327484180,0.05144071,105990.0,105980.0,2.18663624]
[1749327484392,0.05144071,105990.0,105980.0,0.95086114]
[1749327484600,0.05144071,105990.0,105980.0,2.5294197]
[1749327484778,0.05144071,105990.0,105980.0,2.54396055]
[1749327485682,0.05144071,105990.0,105980.0,2.54392055]
[1749327488569,0.05144071,105990.0,105980.0,2.24602054]
[1749327490143,0.05144071,105990.0,105980.0,1.86990054]
[1749327490345,0.05144071,105990.0,105980.0,2.21751554]
[1749327491281,0.05144071,105990.0,105980.0,1.01511698]
[1749327491486,0.05144071,105990.0,105980.0,2.21751554]
[1749327494611,0.05144071,105990.0,105980.0,1.84155554]
[1749327494839,0.05144071,105990.0,105980.0,2.21775554]
[1749327495062,0.05144071,105990.0,105980.0,1.01535698]
[1749327495344,0.05144071,105990.0,105980.0,2.21775554]
[1749327499268,0.05144071,105990.0,105980.0,1.92983554]
[1749327499510,0.03524071,105990.0,105980.0,1.92983554]
[1749327499730,0.03524071,105990.0,105980.0,2.17712129]
[1749327499731,0.01964071,105990.0,105980.0,2.17712129]